bitfinex-derivatives/quotes_ETHF0:USTF0_20260112
["timestamp","ask_amount","ask_price","bid_price","bid_amount"]
[1768221663296,0.93560183,3114.9,3114.2,2.00289574]
[1768221663495,1.23896497,3115.4,3114.2,2.00289574]
[1768221663701,1.29921427,3115.3,3114.2,0.76393077]
[1768221663894,0.93563525,3115.2,3114.3,1.23896497]
[1768221664095,0.93563525,3115.1,3114.3,1.23896497]
[1768221664396,0.93563525,3115.0,3114.3,1.23896497]
[1768221664594,0.93563525,3114.9,3114.3,1.23896497]
[1768221664796,1.23896497,3115.4,3114.3,1.23896497]
[1768221664993,1.29920624,3115.3,3114.3,1.23896497]
[1768221665200,0.93562941,3115.2,3114.3,1.23896497]
[1768221665397,0.93562941,3115.1,3114.3,1.23896497]
[1768221665599,0.93562941,3115.0,3114.3,1.23896497]
[1768221665799,0.93562941,3114.9,3114.3,1.23896497]
[1768221665999,0.00342808,3115.5,3114.3,1.23896497]
[1768221666203,1.29920977,3115.4,3114.3,1.23896497]
[1768221666403,1.29920977,3115.3,3114.3,1.23896497]
[1768221666603,0.93563244,3115.2,3114.3,1.23896497]
[1768221666794,0.93563244,3115.1,3114.3,1.23896497]
[1768221666995,0.93563244,3115.0,3114.3,1.23896497]
[1768221667197,0.00342808,3115.5,3114.3,1.23896497]
[1768221667398,1.29924057,3115.4,3114.3,1.23896497]
[1768221667599,1.29924057,3115.3,3114.3,1.23896497]
[1768221667898,0.93565301,3115.2,3114.3,1.23896497]
[1768221668099,0.93565301,3115.1,3114.3,1.23896497]
[1768221668300,0.93565301,3115.0,3114.3,1.23896497]
[1768221668494,0.00342808,3115.5,3114.3,1.23896497]
[1768221668690,1.29923671,3115.4,3114.3,1.23896497]
[1768221668896,1.29923671,3115.3,3114.3,1.23896497]
[1768221669195,0.93565136,3115.2,3114.3,1.23896497]
[1768221669396,0.93565136,3115.1,3114.5,1.23896497]
[1768221669596,0.93565136,3115.0,3114.5,1.23896497]
[1768221669798,0.00342808,3115.5,3114.5,1.23896497]
[1768221669999,1.29923624,3115.4,3114.5,1.23896497]
[1768221670198,1.29923624,3115.3,3114.5,1.23896497]
[1768221670400,0.93565097,3115.2,3114.5,1.23896497]
[1768221670704,0.93565097,3115.1,3114.3,1.23896497]
[1768221670904,0.93565097,3115.0,3114.3,1.23896497]
[1768221671106,0.00342808,3115.5,3114.3,1.23896497]
[1768221671303,1.29923737,3115.4,3114.3,1.23896497]
[1768221671503,1.29923737,3115.3,3114.3,1.23896497]
[1768221671707,0.93565174,3115.2,3114.3,1.23896497]
[1768221671905,0.93565174,3115.1,3114.3,1.23896497]
[1768221672203,0.93565174,3115.0,3114.3,1.23896497]
[1768221672405,0.93565174,3114.9,3114.3,1.23896497]
[1768221672605,0.00342808,3115.5,3114.3,1.23896497]
[1768221672805,1.29923198,3115.4,3114.3,1.23896497]
[1768221673104,1.29923198,3115.3,3114.3,1.23896497]
[1768221673308,0.93564776,3115.2,3114.3,1.23896497]
[1768221673601,0.93564776,3115.1,3114.3,1.23896497]
[1768221673807,0.93564776,3115.0,3114.3,1.23896497]
[1768221674009,0.93562993,3114.9,3114.3,1.23896497]
[1768221674204,0.00342808,3115.5,3114.3,1.23896497]
[1768221674405,1.29920896,3115.4,3114.3,1.23896497]
[1768221674607,1.29920896,3115.3,3114.3,1.23896497]
[1768221674806,0.93563042,3115.2,3114.3,1.23896497]
[1768221675108,0.93563042,3115.1,3114.3,1.23896497]
[1768221675308,0.93563042,3115.0,3114.3,1.23896497]
[1768221675508,0.00342808,3115.5,3114.3,1.23896497]
[1768221675704,1.29923358,3115.4,3114.3,1.23896497]
[1768221675909,1.29923358,3115.3,3114.2,0.76393077]
[1768221676109,0.93564877,3115.2,3114.2,2.00289574]
[1768221676308,0.93564877,3115.1,3114.2,2.00289574]
[1768221676508,0.93564877,3115.0,3114.2,2.00289574]
[1768221676809,0.93564877,3114.9,3114.2,2.00289574]
[1768221677104,1.24239305,3115.5,3114.2,2.00289574]
[1768221677300,0.93564905,3115.4,3114.2,2.00289574]
[1768221677496,1.29923145,3115.3,3114.2,2.00289574]
[1768221677703,0.93564905,3115.2,3114.2,2.00289574]
[1768221678002,0.93564905,3115.1,3114.2,2.00289574]
[1768221678203,0.93564905,3115.0,3114.2,2.00289574]
[1768221678507,0.93564905,3114.9,3114.2,1.39972497]
[1768221678709,1.24239305,3115.5,3114.2,1.39972497]
[1768221678909,1.29927564,3115.4,3114.2,1.39972497]
[1768221679105,1.29927564,3115.3,3114.2,1.39972497]
[1768221679305,0.93567913,3115.2,3114.2,1.39972497]
[1768221679503,0.93567913,3115.1,3114.2,1.39972497]
[1768221679699,0.93567913,3115.0,3114.2,1.39972497]
[1768221679901,0.93567913,3114.9,3114.2,1.39972497]
[1768221680101,1.24239305,3115.5,3114.2,1.39972497]
[1768221680312,1.29933917,3115.4,3114.2,1.39972497]
[1768221680610,1.29933917,3115.3,3114.2,1.39972497]
[1768221680807,0.93572718,3115.2,3114.2,1.39972497]
[1768221681008,0.93572718,3115.1,3114.2,1.39972497]
[1768221681206,0.93572718,3115.0,3114.2,1.39972497]
[1768221681406,0.93572718,3114.9,3114.2,1.39972497]
[1768221681707,1.24239305,3115.5,3114.2,1.39972497]
[1768221681900,1.29936003,3115.4,3114.2,1.39972497]
[1768221682104,1.29936003,3115.3,3114.2,1.39972497]
[1768221682304,0.93574001,3115.2,3114.2,1.39972497]
[1768221682500,0.93574001,3115.1,3114.2,1.39972497]
[1768221682706,0.93574001,3115.0,3114.2,1.39972497]
[1768221682904,0.93574001,3114.9,3114.2,1.39972497]
[1768221683110,1.24239305,3115.5,3114.2,1.39972497]
[1768221683409,1.29933786,3115.4,3114.2,1.39972497]
[1768221683709,1.29933786,3115.3,3114.2,1.39972497]
[1768221683909,0.93572399,3115.2,3114.2,1.39972497]
[1768221684205,0.93572399,3115.1,3114.2,1.39972497]
[1768221684407,0.93572399,3115.0,3114.2,1.39972497]
[1768221684607,0.93572399,3114.9,3114.2,1.39972497]
[1768221684808,1.24239305,3115.5,3114.2,1.39972497]
[1768221685007,1.29943995,3115.4,3114.2,1.39972497]
[1768221685302,1.29943995,3115.3,3114.2,1.39972497]
[1768221685506,0.93579764,3115.2,3114.2,1.39972497]
[1768221685709,0.93579764,3115.1,3114.8,1.80269757]
[1768221685916,0.00342808,3115.5,3114.8,1.23896497]
[1768221686110,0.93575265,3115.4,3114.6,1.23896497]
[1768221686308,0.93575265,3115.3,3114.6,1.23896497]
[1768221686511,0.00342808,3115.5,3114.6,1.23896497]
[1768221686712,0.93533968,3115.4,3114.6,1.23896497]
[1768221686917,0.93533968,3115.3,3114.6,1.23896497]
[1768221687118,0.00342808,3115.5,3114.6,1.23896497]
[1768221687316,0.93509402,3115.4,3114.4,0.7244826]
[1768221687519,0.00342808,3115.5,3114.4,0.7244826]
[1768221687712,0.93509037,3115.4,3114.4,0.7244826]
[1768221687912,0.00342808,3115.5,3114.4,0.7244826]
[1768221689014,0.00342808,3115.5,3114.5,0.7244726]
[1768221689218,0.60286017,3116.4,3115.2,0.5637326]
[1768221689417,0.93491382,3116.3,3115.2,2.0727326]
[1768221689721,0.93491382,3116.2,3115.2,2.0727326]
[1768221689919,0.93491382,3116.1,3115.2,2.0727326]
[1768221690218,0.00271517,3116.1,3115.2,2.0727326]
[1768221700318,0.00271517,3116.1,3115.3,0.54337655]
[1768221700926,0.58151336,3116.9,3115.3,0.54337655]
[1768221701126,1.28357682,3116.8,3115.3,0.54337655]
[1768221701321,0.9321275,3116.7,3115.3,0.54337655]
[1768221701620,0.9321275,3116.6,3115.3,0.54337655]
[1768221701820,0.9321275,3116.5,3115.3,0.54337655]
[1768221702024,0.9321275,3116.4,3115.3,0.54337655]
[1768221702228,0.9321275,3116.3,3115.3,0.54337655]
[1768221702530,0.0030849,3116.6,3115.5,0.54337655]
[1768221702729,0.93207441,3116.5,3115.5,0.54337655]
[1768221702927,0.93207441,3116.4,3115.5,0.54337655]
[1768221703123,0.0030849,3116.6,3115.5,0.54337655]
[1768221703428,0.93200406,3116.5,3115.5,0.54337655]
[1768221703629,0.0030849,3116.6,3115.5,0.54337655]
[1768221703823,0.93200154,3116.5,3115.5,0.54337655]
[1768221704023,0.0030849,3116.6,3115.5,0.54337655]
[1768221704332,0.931958,3116.5,3115.5,0.54337655]
[1768221704526,0.0030849,3116.6,3115.5,0.54337655]
[1768221704726,0.9319608,3116.5,3115.5,0.54337655]
[1768221704927,0.0030849,3116.6,3115.5,0.54337655]
[1768221705128,0.9319585,3116.5,3115.5,0.54337655]
[1768221705332,0.0030849,3116.6,3115.5,0.54337655]
[1768221705531,0.93194196,3116.5,3115.5,0.54337655]
[1768221705730,0.0030849,3116.6,3115.5,0.54337655]
[1768221705921,0.93196028,3116.5,3115.5,0.54337655]
[1768221706124,0.0030849,3116.6,3115.5,0.54337655]
[1768221706324,0.93196348,3116.5,3115.5,0.54337655]
[1768221706632,0.0030849,3116.6,3115.5,0.54337655]
[1768221706932,0.93196432,3116.5,3115.5,0.54337655]
[1768221707231,0.0030849,3116.6,3115.5,0.54337655]
[1768221707432,0.93200415,3116.5,3115.5,0.54337655]
[1768221707732,0.0030849,3116.6,3115.5,0.54337655]
[1768221707924,0.93200416,3116.5,3115.5,0.54337655]
[1768221708120,0.0030849,3116.6,3115.5,0.54337655]
[1768221709133,0.93218357,3116.5,3115.5,0.54337655]
[1768221709326,0.0030849,3116.6,3115.5,0.54337655]
[1768221709530,0.93218357,3116.5,3115.5,0.54337655]
[1768221709832,0.0030849,3116.6,3115.5,0.54337655]
[1768221710131,0.93218438,3116.5,3115.5,0.54337655]
[1768221710433,0.0030849,3116.6,3115.5,0.54337655]
[1768221710629,0.9323257,3116.5,3115.5,0.54337655]
[1768221710832,0.0030849,3116.6,3115.5,0.54337655]
[1768221711132,0.93232558,3116.5,3115.5,0.54337655]
[1768221711333,0.0030849,3116.6,3115.5,0.54337655]
[1768221711533,0.93250853,3116.5,3115.5,0.54337655]
[1768221711727,0.0030849,3116.6,3115.5,0.54337655]
[1768221711927,0.93250855,3116.5,3115.5,0.54337655]
[1768221712129,0.0030849,3116.6,3115.5,0.54337655]
[1768221712331,0.93273872,3116.5,3115.5,0.54337655]
[1768221712630,0.0030849,3116.6,3115.5,0.54337655]
[1768221712833,0.93273872,3116.5,3115.5,0.54337655]
[1768221713035,0.0030849,3116.6,3115.5,0.54337655]
[1768221713235,0.93302634,3116.5,3115.5,0.54337655]
[1768221713438,0.0030849,3116.6,3115.5,0.54337655]
[1768221713637,0.93302299,3116.5,3115.3,0.1607]
[1768221713837,0.0030849,3116.6,3115.3,0.1607]
[1768221714039,0.0030849,3116.6,3115.3,0.70407655]
[1768221714040,0.93301522,3116.5,3115.3,0.70407655]
[1768221714242,0.93301522,3116.4,3115.5,0.16069]
[1768221714535,0.0030849,3116.6,3115.8,0.70405655]
[1768221714734,0.0030849,3116.6,3115.8,0.7069269]
[1768221720538,2.87171704,3117.9,3116.5,0.54337655]
[1768221720737,0.74207336,3118.1,3116.5,0.54337655]
[1768221720738,1.28962284,3117.8,3116.5,0.54337655]
[1768221720942,1.28962284,3117.7,3116.5,0.54337655]
[1768221721138,1.28962284,3117.6,3116.5,0.54337655]
[1768221721338,0.93733537,3117.5,3116.5,0.54337655]
[1768221721538,0.93733537,3117.4,3116.5,0.54337655]
[1768221721735,0.93733537,3117.3,3116.5,0.54337655]
[1768221722034,0.93733537,3117.2,3116.5,0.54337655]
[1768221722239,0.0036484,3117.5,3116.5,0.54337655]
[1768221722446,0.93675689,3117.4,3116.5,0.54337655]
[1768221722750,0.93675689,3117.3,3116.5,0.54337655]
[1768221722943,0.93675689,3117.2,3116.5,0.54337655]
[1768221723139,0.0036484,3117.5,3116.5,0.54337655]
[1768221723341,0.93655885,3117.4,3116.5,0.54337655]
[1768221723541,0.93655885,3117.3,3116.5,0.54337655]
[1768221723741,0.0036484,3117.5,3116.5,0.54337655]
[1768221728249,0.74207336,3118.1,3116.5,0.54337655]
[1768221728456,0.93532348,3118.0,3116.5,0.54337655]
[1768221728651,0.93532348,3117.9,3116.5,0.54337655]
[1768221728950,0.93532348,3117.8,3116.5,0.54337655]
[1768221729155,0.74207336,3118.1,3116.5,0.54337655]
[1768221729339,0.00255302,3117.8,3116.5,0.54337655]
[1768221729546,0.57926885,3117.4,3115.9,0.16067]
[1768221729756,0.93644379,3117.3,3115.9,0.74156499]
[1768221729938,0.93644379,3117.3,3116.0,0.16067]
[1768221730441,0.93644379,3117.3,3116.0,0.74156499]
[1768221731352,1.51571264,3117.3,3116.0,0.74156499]
[1768221731550,0.93644379,3117.2,3116.0,0.74156499]
[1768221733653,0.93644379,3117.2,3116.0,0.16067]
[1768221735156,0.93644379,3117.2,3116.1,0.5578147]
[1768221735456,0.5469335,3117.7,3116.1,0.5578147]
[1768221735658,0.93697065,3117.6,3116.1,0.5578147]
[1768221735856,0.93697065,3117.5,3116.1,0.5578147]
[1768221736056,0.93697065,3117.4,3116.1,0.5578147]
[1768221736258,0.93697065,3117.3,3116.1,0.5578147]
[1768221736456,0.93697065,3117.2,3116.1,0.5578147]
[1768221736655,0.5469335,3117.7,3116.1,0.7184747]
[1768221736958,0.93709178,3117.6,3116.2,0.5578147]
[1768221737158,0.93709178,3117.5,3116.2,0.5578147]
[1768221737358,0.93709178,3117.4,3116.2,0.5578147]
[1768221737557,0.93709178,3117.3,3116.2,0.5578147]
[1768221737757,0.93709178,3117.2,3116.2,0.5578147]
[1768221737961,0.00255302,3117.8,3116.2,0.5578147]
[1768221738160,1.28899803,3117.7,3116.2,0.5578147]
[1768221738355,0.93721396,3117.6,3116.2,0.5578147]
[1768221738561,0.93721396,3117.5,3116.3,0.5578147]
[1768221738859,0.93721396,3117.4,3116.3,0.5578147]
[1768221739060,0.93721396,3117.3,3116.3,0.5578147]
[1768221739259,0.93721396,3117.2,3116.3,0.5578147]
[1768221739454,0.00255302,3117.8,3116.4,0.5578147]
[1768221739662,0.93751769,3117.7,3116.4,0.5578147]
[1768221739958,0.00255302,3117.8,3116.4,0.5578147]
[1768221739959,0.93751769,3117.6,3116.4,0.5578147]
[1768221740160,0.93751769,3117.5,3116.4,0.5578147]
[1768221740348,0.93751769,3117.4,3116.4,0.5578147]
[1768221740552,0.00255302,3117.8,3116.4,0.5578147]
[1768221740754,0.93816769,3117.7,3116.4,0.5578147]
[1768221740954,0.93816769,3117.6,3116.4,0.5578147]
[1768221741153,0.93816769,3117.5,3116.4,0.5578147]
[1768221741354,0.93816769,3117.4,3116.4,0.5578147]
[1768221741555,0.00255302,3117.8,3116.4,0.5578147]
[1768221741755,0.93833805,3117.7,3116.4,0.5578147]
[1768221742061,0.93833805,3117.6,3116.4,0.5578147]
[1768221742258,0.93833805,3117.5,3116.4,0.5578147]
[1768221742562,0.54948652,3117.8,3116.3,1.23866587]
[1768221742758,0.54948652,3117.8,3116.0,0.5578147]
[1768221743162,0.54948652,3117.8,3116.3,0.16065]
[1768221743466,0.54948652,3117.8,3116.4,0.16064]
[1768221747458,0.54948652,3117.8,3116.6,1.23714826]
[1768221749859,0.54948652,3117.8,3117.1,1.23714826]
[1768221750063,0.54948652,3117.8,3116.7,0.16063]
[1768221750064,0.54948652,3117.8,3116.9,1.23714826]
[1768221750764,0.00255302,3117.8,3116.9,1.23714826]
[1768221754474,0.93396723,3117.7,3116.9,1.23714826]
[1768221754776,0.00255302,3117.8,3116.9,1.23714826]
[1768221754975,0.93396723,3117.7,3116.9,1.23714826]
[1768221755177,0.00255302,3117.8,3116.9,1.23714826]
[1768221755379,0.93391489,3117.7,3116.9,1.23714826]
[1768221755577,0.00255302,3117.8,3116.9,1.23714826]
[1768221755877,0.93391473,3117.7,3117.1,1.23714826]
[1768221756073,0.00255302,3117.8,3117.1,1.23714826]
[1768221764788,0.00255302,3117.8,3117.1,1.39775826]
[1768221764991,0.56938153,3118.7,3117.5,1.23714826]
[1768221765193,1.28616317,3118.6,3117.5,1.23714826]
[1768221765496,1.28616317,3118.5,3117.5,1.23714826]
[1768221765694,1.28616317,3118.4,3117.5,1.23714826]
[1768221765896,0.93395976,3118.3,3117.5,1.23714826]
[1768221768200,0.93395976,3118.3,3117.2,0.1606]
[1768221768498,0.93395976,3118.3,3117.3,1.23714826]
[1768221769197,0.93395976,3118.3,3117.2,0.1606]
[1768221769798,1.50334129,3118.3,3117.2,0.1606]
[1768221770102,0.93395976,3118.2,3117.2,0.1606]
[1768221779508,0.93395976,3118.2,3117.3,1.23714826]
[1768221786705,0.93395976,3118.2,3117.7,1.23714826]
[1768221787010,0.00315294,3118.4,3117.5,1.23714826]
[1768221787214,0.93507394,3118.3,3117.5,1.23714826]
[1768221787410,0.93507394,3118.2,3117.5,1.23714826]
[1768221787612,0.00315294,3118.4,3117.5,1.23714826]
[1768221787803,0.9350958,3118.3,3117.5,1.23714826]
[1768221788004,0.9350958,3118.2,3117.5,1.23714826]
[1768221788207,0.00315294,3118.4,3117.5,1.23714826]
[1768221788512,0.93511217,3118.3,3117.5,1.23714826]
[1768221788712,0.93511217,3118.2,3117.5,1.23714826]
[1768221788915,0.00315294,3118.4,3117.5,1.23714826]
[1768221789115,0.93511217,3118.3,3117.5,1.23714826]
[1768221789314,0.93511217,3118.2,3117.5,1.23714826]
[1768221789513,0.57825712,3118.2,3117.4,0.16059]
[1768221791314,0.93531185,3118.1,3117.4,0.16059]
[1768221791617,0.57825712,3118.2,3117.4,0.16059]
[1768221791918,0.93531167,3118.1,3117.4,0.16059]
[1768221792115,0.57825712,3118.2,3117.4,0.16059]
[1768221792419,0.93540566,3118.1,3117.4,0.16059]
[1768221792619,0.57825712,3118.2,3117.4,0.16059]
[1768221792815,0.93540566,3118.1,3117.4,0.16059]
[1768221793010,0.57825712,3118.2,3117.4,0.16059]
[1768221793211,0.93540566,3118.1,3117.4,0.16059]
[1768221793408,0.57825712,3118.2,3117.4,0.16059]
[1768221793609,0.93554776,3118.1,3117.4,0.16059]
[1768221793820,0.93554776,3118.0,3117.4,0.16059]
[1768221794122,0.57825712,3118.2,3117.4,0.16059]
[1768221794310,0.93576267,3118.1,3117.4,0.16059]
[1768221794511,0.93576267,3118.0,3117.4,0.16059]
[1768221794712,0.57825712,3118.2,3117.4,0.16059]
[1768221795012,0.93576252,3118.1,3117.4,0.16059]
[1768221795213,0.93576252,3118.0,3117.4,0.16059]
[1768221795414,0.57825712,3118.2,3117.4,0.16059]
[1768221795717,0.93580744,3118.1,3117.4,0.16059]
[1768221795917,0.93580744,3118.0,3117.4,0.16059]
[1768221796117,0.57825712,3118.2,3117.4,0.16059]
[1768221796318,0.93580774,3118.1,3117.4,0.16059]
[1768221796518,0.93580774,3118.0,3117.4,0.16059]
[1768221796725,0.57825712,3118.2,3117.4,0.16059]
[1768221796915,0.93580774,3118.1,3117.4,0.16059]
[1768221797114,0.93580774,3118.0,3117.4,0.16059]
[1768221797316,0.57825712,3118.2,3117.4,0.16059]
[1768221797515,0.93580855,3118.1,3117.4,0.16059]
[1768221797824,0.93580855,3118.0,3117.4,0.16059]
[1768221798023,0.57825712,3118.2,3117.4,0.16059]
[1768221798223,0.9358186,3118.1,3117.4,0.16059]
[1768221798423,0.9358186,3118.0,3117.4,0.16059]
[1768221798625,0.57825712,3118.2,3117.4,0.16059]
[1768221798818,0.93580955,3118.1,3117.4,0.16059]
[1768221799020,0.93580955,3118.0,3117.4,0.16059]
[1768221799320,0.57825712,3118.2,3117.4,0.16059]
[1768221799617,0.9358084,3118.1,3117.4,0.16059]
[1768221799921,0.57825712,3118.2,3117.4,0.16059]
[1768221800121,0.93578095,3118.1,3117.4,0.16059]
[1768221800320,0.00315294,3118.4,3117.4,0.16059]
[1768221800626,0.93577211,3118.3,3117.6,1.23714826]
[1768221800821,0.93577211,3118.2,3117.6,1.23714826]
[1768221801021,0.93577211,3118.1,3117.6,1.23714826]
[1768221801223,0.00315294,3118.4,3117.6,1.23714826]
[1768221801425,0.93576034,3118.3,3117.6,1.23714826]
[1768221801624,0.93576034,3118.2,3117.6,1.23714826]
[1768221801827,0.93576034,3118.1,3117.6,1.23714826]
[1768221802025,0.00315294,3118.4,3117.6,1.23714826]
[1768221802226,0.93576034,3118.3,3117.6,1.23714826]
[1768221802427,0.93576034,3118.2,3117.6,1.23714826]
[1768221802620,0.93576034,3118.1,3117.6,1.23714826]
[1768221802820,0.00315294,3118.4,3117.8,1.23714826]
[1768221803021,0.9357309,3118.3,3117.8,1.23714826]
[1768221803221,0.9357309,3118.2,3117.6,1.23714826]
[1768221803426,0.9357309,3118.1,3117.6,1.23714826]
[1768221803623,0.00315294,3118.4,3117.6,1.23714826]
[1768221803822,0.93570567,3118.3,3117.6,1.23714826]
[1768221804022,0.93570567,3118.2,3117.6,1.23714826]
[1768221804228,0.93570567,3118.1,3117.6,1.23714826]
[1768221804428,0.00315294,3118.4,3117.6,1.23714826]
[1768221804617,0.93568801,3118.3,3117.6,1.23714826]
[1768221804818,0.93568801,3118.2,3117.6,1.23714826]
[1768221805023,0.93568801,3118.1,3117.6,1.23714826]
[1768221805228,0.00315294,3118.4,3117.6,1.23714826]
[1768221805423,0.93568748,3118.3,3117.6,1.23714826]
[1768221805623,0.93568748,3118.2,3117.6,1.23714826]
[1768221805824,0.93568748,3118.1,3117.6,1.23714826]
[1768221806030,0.00315294,3118.4,3117.6,1.23714826]
[1768221806233,0.93567831,3118.3,3117.8,1.23714826]
[1768221806434,0.93567831,3118.2,3117.8,1.23714826]
[1768221806732,0.00315294,3118.4,3117.6,1.39772826]
[1768221807732,0.00315294,3118.4,3117.8,1.23714826]
[1768221807933,0.56280393,3119.0,3117.8,1.23714826]
[1768221808237,0.35273539,3118.9,3117.8,1.39771826]
[1768221808432,0.56280393,3119.0,3117.8,1.39771826]
[1768221808733,0.35264337,3118.9,3117.8,1.39771826]
[1768221808934,0.00246679,3118.9,3117.8,1.39771826]
[1768221809325,0.00246679,3118.9,3117.8,0.16057]
[1768221818340,0.56356128,3118.9,3117.8,0.16057]
[1768221818542,0.92913553,3118.8,3117.8,0.16057]
[1768221818840,0.92913553,3118.7,3117.8,0.16057]
[1768221819029,0.92913553,3118.6,3117.8,0.16057]
[1768221819234,0.56356128,3118.9,3117.8,0.16057]
[1768221819529,0.92910176,3118.8,3117.8,0.16057]
[1768221819832,0.92910176,3118.7,3117.8,0.16057]
[1768221820032,0.92910176,3118.6,3117.8,0.16057]
[1768221820232,0.56356128,3118.9,3117.8,0.16057]
[1768221820427,0.92907854,3118.8,3117.8,0.16057]
[1768221820633,0.92907854,3118.7,3117.8,0.16057]
[1768221820835,0.92907854,3118.6,3117.8,0.16057]
[1768221821038,0.56356128,3118.9,3117.8,0.16057]
[1768221821238,0.92906163,3118.8,3117.8,0.16057]
[1768221821442,0.92906163,3118.7,3117.8,0.16057]
[1768221821642,0.92906163,3118.6,3117.8,0.16057]
[1768221821835,0.56356128,3118.9,3117.8,0.16057]
[1768221822035,0.9290619,3118.8,3117.8,0.16057]
[1768221822235,0.9290619,3118.7,3117.8,0.16057]
[1768221822435,0.9290619,3118.6,3117.8,0.16057]
[1768221822643,0.56356128,3118.9,3117.8,0.16057]
[1768221822835,0.92905065,3118.8,3117.8,0.16057]
[1768221823035,0.92905065,3118.7,3117.8,0.16057]
[1768221823238,0.92905065,3118.6,3117.8,0.16057]
[1768221823538,0.56356128,3118.9,3117.8,0.16057]
[1768221823737,0.92904543,3118.8,3117.8,0.16057]
[1768221824034,0.92904543,3118.7,3117.8,0.16057]
[1768221824235,0.92904543,3118.6,3117.8,0.16057]
[1768221824435,0.56356128,3118.9,3117.8,0.16057]
[1768221824631,0.92908707,3118.8,3117.8,0.16057]
[1768221824837,0.92908707,3118.7,3117.8,0.16057]
[1768221825038,0.92908707,3118.6,3117.8,0.16057]
[1768221825344,0.56356128,3118.9,3117.8,0.16057]
[1768221825548,0.92914077,3118.8,3117.8,0.16057]
[1768221825740,0.92914077,3118.7,3117.8,0.16057]
[1768221825938,0.92914077,3118.6,3117.8,0.16057]
[1768221826141,0.9292078,3118.5,3117.8,0.16057]
[1768221826335,0.56356128,3118.9,3117.8,0.16057]
[1768221826541,0.9292078,3118.8,3117.8,0.16057]
[1768221826741,0.9292078,3118.7,3117.8,0.16057]
[1768221826946,0.9292078,3118.6,3117.8,0.16057]
[1768221827146,0.9292078,3118.5,3117.8,0.16057]
[1768221827338,0.56356128,3118.9,3117.8,0.16057]
[1768221827540,0.92928957,3118.8,3117.8,0.16057]
[1768221827736,0.92928957,3118.7,3117.8,0.16057]
[1768221827941,0.92928957,3118.6,3117.8,0.16057]
[1768221828146,0.92928957,3118.5,3117.8,0.16057]
[1768221828346,0.56356128,3118.9,3117.8,0.16057]
[1768221828544,0.92938745,3118.8,3117.8,0.16057]
[1768221828745,0.92938745,3118.7,3117.8,0.16057]
[1768221828948,0.92938745,3118.6,3117.8,0.16057]
[1768221829146,0.92938745,3118.5,3117.8,0.16057]
[1768221829337,0.56356128,3118.9,3117.8,0.16057]
[1768221829544,0.92950807,3118.8,3117.8,0.16057]
[1768221829750,0.92950807,3118.7,3117.8,0.16057]
[1768221829944,0.92950807,3118.6,3117.8,0.16057]
[1768221830144,0.92950807,3118.5,3117.8,0.16057]
[1768221830345,0.56356128,3118.9,3117.8,0.16057]
[1768221830546,0.92958999,3118.8,3117.8,0.16057]
[1768221830840,0.92958999,3118.7,3117.8,0.16057]
[1768221831052,0.92958999,3118.6,3117.8,0.16057]
[1768221831252,0.92958999,3118.5,3117.8,0.16057]
[1768221831552,0.56356128,3118.9,3117.8,0.16057]
[1768221831750,0.92967521,3118.8,3117.8,0.16057]
[1768221831951,0.92967521,3118.7,3117.8,0.16057]
[1768221832151,0.92967521,3118.6,3117.8,0.16057]
[1768221832350,0.92967521,3118.5,3117.8,0.16057]
[1768221832551,0.56356128,3118.9,3117.8,0.16057]
[1768221832747,0.92977996,3118.8,3117.8,0.16057]
[1768221832952,0.92977996,3118.7,3117.8,0.16057]
[1768221833147,0.92977996,3118.6,3117.8,0.16057]
[1768221833350,0.92977996,3118.5,3117.8,0.16057]
[1768221833651,0.56356128,3118.9,3117.8,0.16057]
[1768221833852,1.28256721,3118.8,3117.8,0.16057]
[1768221834053,0.92987821,3118.7,3117.8,0.16057]
[1768221834253,0.92987821,3118.6,3117.8,0.16057]
[1768221834453,0.92987821,3118.5,3117.8,0.16057]
[1768221834752,0.56356128,3118.9,3117.8,0.16057]
[1768221834954,1.28272439,3118.8,3117.8,0.16057]
[1768221835152,0.9299898,3118.7,3117.8,0.16057]
[1768221835346,0.9299898,3118.6,3117.8,0.16057]
[1768221835541,0.9299898,3118.5,3117.8,0.16057]
[1768221835748,0.9299898,3118.4,3117.4,1.23613981]
[1768221835955,1.49108429,3118.4,3117.3,0.1606]
[1768221836146,0.56109449,3118.4,3117.3,0.1606]
[1768221836653,0.93038509,3118.3,3117.3,0.1606]
[1768221836852,0.93038509,3118.2,3117.3,0.1606]
[1768221837055,0.56109449,3118.4,3117.3,0.1606]
[1768221837260,0.93047638,3118.3,3117.3,0.1606]
[1768221837552,0.93047638,3118.2,3117.3,0.1606]
[1768221837750,0.56109449,3118.4,3117.3,0.1606]
[1768221837951,0.93047454,3118.3,3117.4,0.16059]
[1768221838152,0.93047454,3118.2,3117.4,0.16059]
[1768221838353,0.56109449,3118.4,3117.4,0.16059]
[1768221838553,0.9302123,3118.3,3117.4,0.16059]
[1768221838753,0.9302123,3118.2,3117.4,0.16059]
[1768221838950,0.56109449,3118.4,3117.4,0.16059]
[1768221839155,0.93021373,3118.3,3117.4,0.16059]
[1768221839352,0.93021373,3118.2,3117.4,0.16059]
[1768221839554,0.56109449,3118.4,3117.4,0.16059]
[1768221839854,0.93013087,3118.3,3117.4,0.16059]
[1768221840057,0.93013087,3118.2,3117.4,0.16059]
[1768221840248,0.56109449,3118.4,3117.4,0.16059]
[1768221840449,0.93006547,3118.3,3117.4,0.16059]
[1768221840650,0.93006547,3118.2,3117.4,0.16059]
[1768221840850,0.56109449,3118.4,3117.4,0.16059]
[1768221841051,0.93006536,3118.3,3117.4,0.16059]
[1768221841258,0.93006536,3118.2,3117.4,0.16059]
[1768221841465,0.56109449,3118.4,3117.4,0.16059]
[1768221841663,0.93001424,3118.3,3117.4,0.16059]
[1768221841863,0.93001424,3118.2,3117.4,0.16059]
[1768221842058,0.56109449,3118.4,3117.4,0.16059]
[1768221842257,0.92996638,3118.3,3117.4,0.16059]
[1768221842458,0.92996638,3118.2,3117.4,0.16059]
[1768221842657,0.56109449,3118.4,3117.4,0.16059]
[1768221842861,0.92996608,3118.3,3117.4,0.16059]
[1768221843164,0.92996608,3118.2,3117.4,0.16059]
[1768221843362,0.56109449,3118.4,3117.4,0.16059]
[1768221843553,0.92992808,3118.3,3117.4,0.16059]
[1768221843754,0.92992808,3118.2,3117.4,0.16059]
[1768221843955,0.56109449,3118.4,3117.4,0.16059]
[1768221844156,0.92992828,3118.3,3117.4,0.16059]
[1768221844456,0.92992828,3118.2,3117.4,0.16059]
[1768221844657,0.56109449,3118.4,3117.4,0.16059]
[1768221844861,0.92989618,3118.3,3117.4,0.16059]
[1768221845061,0.92989618,3118.2,3117.4,0.16059]
[1768221845266,0.56109449,3118.4,3117.4,0.16059]
[1768221845465,0.92987,3118.3,3117.4,0.16059]
[1768221845665,0.92987,3118.2,3117.4,0.16059]
[1768221845966,0.56109449,3118.4,3117.4,0.16059]
[1768221846164,0.9298695,3118.3,3117.4,0.16059]